bitfinex/quotes_BTCUSD_20241014
["timestamp","ask_amount","ask_price","bid_price","bid_amount"]
[1728901082510,2.72112204,64920.0,64919.0,0.001646]
[1728901082752,2.7748669,64920.0,64919.0,0.001646]
[1728901083000,2.93381937,64920.0,64919.0,0.001646]
[1728901083237,2.78285649,64920.0,64919.0,0.001646]
[1728901083456,2.78085649,64920.0,64919.0,0.001646]
[1728901083906,2.7806163,64920.0,64919.0,0.001646]
[1728901084133,2.7666163,64920.0,64919.0,0.001646]
[1728901084378,2.55374841,64920.0,64919.0,0.001646]
[1728901084622,0.80885944,64920.0,64919.0,0.001646]
[1728901084895,0.74417444,64920.0,64919.0,0.001646]
[1728901085145,0.49245743,64920.0,64919.0,0.001646]
[1728901085381,0.4492486,64920.0,64919.0,0.001646]
[1728901085643,0.34325901,64920.0,64919.0,0.001646]
[1728901085863,0.34325901,64920.0,64919.0,0.081346]
[1728901086358,0.31525901,64920.0,64919.0,0.081346]
[1728901086581,0.32425901,64920.0,64919.0,0.081346]
[1728901086811,0.42425901,64920.0,64919.0,0.081346]
[1728901087039,0.43325901,64920.0,64919.0,0.081346]
[1728901087293,0.42425901,64920.0,64919.0,0.081346]
[1728901087533,0.42525901,64920.0,64919.0,0.081346]
[1728901087987,0.41625901,64920.0,64919.0,0.081346]
[1728901088226,0.41725901,64920.0,64919.0,0.081346]
[1728901092628,0.256035,64920.0,64919.0,0.081346]
[1728901092872,0.001,64920.0,64919.0,0.42532419]
[1728901093355,0.23205625,64929.0,64927.0,0.154019]
[1728901094040,0.308009,64933.0,64927.0,0.154019]
[1728901094041,0.154007,64932.0,64927.0,0.154019]
[1728901094275,0.1,64935.0,64927.0,0.343719]
[1728901094499,0.254006,64933.0,64927.0,0.343719]
[1728901094731,0.008923,64928.0,64927.0,0.343719]
[1728901094970,0.016923,64928.0,64927.0,0.34395919]
[1728901095687,0.008923,64928.0,64927.0,0.34395919]
[1728901096153,0.004923,64928.0,64927.0,0.34395919]
[1728901096402,0.004923,64928.0,64927.0,0.343719]
[1728901096637,0.008923,64928.0,64927.0,0.51684203]
[1728901096866,0.004923,64928.0,64927.0,0.59958222]
[1728901097326,0.000923,64928.0,64927.0,0.60058222]
[1728901097585,0.000923,64928.0,64927.0,1.06263222]
[1728901098511,0.000923,64928.0,64927.0,0.88950919]
[1728901101132,0.000923,64928.0,64927.0,0.73549019]
[1728901101832,0.000923,64928.0,64927.0,0.88950919]
[1728901106046,0.000923,64928.0,64927.0,1.0577332]
[1728901106270,0.015,64930.0,64929.0,0.60617722]
[1728901106523,0.015,64930.0,64929.0,1.27313699]
[1728901106748,0.015,64930.0,64929.0,1.22944123]
[1728901107003,0.015,64930.0,64929.0,1.27513699]
[1728901107232,0.000823,64949.0,64937.0,0.42603519]
[1728901107457,0.000823,64949.0,64937.0,1.22237223]
[1728901107912,0.000823,64949.0,64944.0,0.42841819]
[1728901108210,0.000823,64949.0,64944.0,1.06348122]
[1728901108633,0.000823,64949.0,64948.0,0.15420919]
[1728901108860,0.000823,64949.0,64948.0,0.61611919]
[1728901109558,0.000823,64949.0,64948.0,0.86584222]
[1728901109788,0.001823,64949.0,64948.0,0.87284222]
[1728901111908,0.002823,64949.0,64948.0,0.87284222]
[1728901112376,0.002823,64949.0,64948.0,0.69971919]
[1728901117296,0.002823,64949.0,64948.0,0.54575019]
[1728901118200,0.002823,64949.0,64948.0,0.69971919]
[1728901118659,0.002823,64949.0,64948.0,0.54575019]
[1728901118915,0.002823,64949.0,64948.0,0.87284222]
[1728901119135,0.002823,64949.0,64948.0,1.05934222]
[1728901120552,0.002823,64949.0,64948.0,1.22556623]
[1728901120795,0.002823,64949.0,64948.0,1.22056623]
[1728901121039,0.002823,64949.0,64948.0,1.22556623]
[1728901121279,0.002823,64949.0,64948.0,1.22056623]
[1728901121506,0.002823,64949.0,64948.0,1.22556623]
[1728901122001,0.002823,64949.0,64948.0,1.22056623]
[1728901122483,0.002823,64949.0,64948.0,1.22756623]
[1728901122722,0.002823,64949.0,64948.0,1.22556623]
[1728901127209,0.002823,64949.0,64948.0,1.22756623]
[1728901127689,0.002823,64949.0,64948.0,1.22556623]
[1728901128665,0.002823,64949.0,64948.0,1.22756623]
[1728901130715,0.002823,64949.0,64948.0,1.22056623]
[1728901131446,0.002823,64949.0,64948.0,1.22556623]
[1728901131670,0.002823,64949.0,64948.0,1.22756623]
[1728901133051,0.002823,64949.0,64948.0,1.22256623]
[1728901133957,0.002823,64949.0,64948.0,1.22756623]
[1728901134318,0.002823,64949.0,64948.0,1.22056623]
[1728901135156,0.002823,64949.0,64948.0,1.22256623]
[1728901135940,0.002823,64949.0,64948.0,1.28769778]
[1728901137965,0.002823,64949.0,64948.0,1.50432507]
[1728901138207,0.000823,64960.0,64959.0,0.65753777]
[1728901138452,0.000823,64960.0,64959.0,1.12136777]
[1728901139373,0.001823,64960.0,64959.0,1.28759178]
[1728901140089,0.001823,64960.0,64959.0,1.4917076]
[1728901140580,0.001823,64960.0,64959.0,1.40055528]
[1728901140803,0.002823,64960.0,64959.0,1.45118499]
[1728901141035,0.002823,64960.0,64959.0,1.40355528]
[1728901141272,0.002823,64960.0,64959.0,1.3371993]
[1728901142206,0.002823,64960.0,64959.0,1.246026]
[1728901142448,0.002823,64960.0,64959.0,0.88911319]
[1728901142702,0.002823,64960.0,64959.0,0.62401319]
[1728901143404,0.002823,64960.0,64959.0,0.79712223]
[1728901143880,0.002823,64960.0,64959.0,0.62401319]
[1728901144161,0.002823,64960.0,64959.0,0.47007019]
[1728901144408,0.156763,64960.0,64959.0,0.46983]
[1728901144663,0.000823,64960.0,64959.0,0.46183]
[1728901144891,0.38681925,64960.0,64959.0,0.46183]
[1728901145138,0.154763,64960.0,64959.0,0.46583]
[1728901145369,0.154763,64960.0,64959.0,0.46183]
[1728901145612,0.154763,64960.0,64959.0,0.46583]
[1728901145847,0.31598701,64960.0,64959.0,0.46583]
[1728901146091,0.41598701,64960.0,64959.0,0.46183]
[1728901146580,0.62854682,64960.0,64959.0,0.46583]
[1728901146839,1.19997582,64960.0,64959.0,0.46583]
[1728901147069,1.19897582,64960.0,64959.0,0.46183]
[1728901147541,0.98411682,64960.0,64959.0,0.46183]
[1728901147799,0.97911682,64960.0,64959.0,0.46183]
[1728901148036,0.98711682,64960.0,64959.0,0.46283]
[1728901148302,0.98711682,64960.0,64959.0,0.46183]
[1728901148598,0.98711682,64960.0,64959.0,0.46283]
[1728901148816,1.00111682,64960.0,64959.0,0.46283]
[1728901149071,1.00111682,64960.0,64959.0,0.46183]
[1728901149284,0.75244682,64960.0,64959.0,0.46283]
[1728901149518,0.72468701,64960.0,64959.0,0.46283]
[1728901149746,0.53164682,64960.0,64959.0,0.46283]
[1728901149991,0.54564682,64960.0,64959.0,0.46283]
[1728901150462,0.50364682,64960.0,64959.0,0.46183]
[1728901150693,0.50364682,64960.0,64959.0,0.46283]
[1728901150694,0.42998701,64960.0,64959.0,0.46283]
[1728901150903,0.44398701,64960.0,64959.0,0.46283]
[1728901152454,0.128823,64960.0,64959.0,0.46283]
[1728901152697,0.028823,64960.0,64959.0,0.46283]
[1728901152956,0.028823,64960.0,64959.0,0.616773]
[1728901153192,0.028823,64960.0,64959.0,0.61701319]
[1728901153451,0.028823,64960.0,64959.0,0.79012223]
[1728901153452,0.014823,64960.0,64959.0,0.79012223]
[1728901153697,0.006823,64960.0,64959.0,0.78912223]
[1728901153940,0.011823,64960.0,64959.0,0.78912223]
[1728901154417,0.011823,64960.0,64959.0,0.61601319]
[1728901154638,0.011823,64960.0,64959.0,0.46183]
[1728901154639,0.165763,64960.0,64959.0,0.46183]
[1728901154860,0.011823,64960.0,64959.0,0.46183]
[1728901155080,0.165763,64960.0,64959.0,0.46183]
[1728901156251,0.011823,64960.0,64959.0,0.615773]
[1728901156481,0.011823,64960.0,64959.0,0.46183]
[1728901156719,0.165763,64960.0,64959.0,0.46183]
[1728901156950,0.011823,64960.0,64959.0,0.46183]
[1728901157628,0.165763,64960.0,64959.0,0.46183]
[1728901158796,0.32698701,64960.0,64959.0,0.46183]
[1728901159268,0.42698701,64960.0,64959.0,0.46183]
[1728901159487,0.43174682,64960.0,64959.0,0.46183]
[1728901160226,0.42574682,64960.0,64959.0,0.46183]
[1728901160706,0.43474682,64960.0,64959.0,0.46183]
[1728901160948,0.44874682,64960.0,64959.0,0.46283]
[1728901161214,0.65474682,64960.0,64959.0,0.46283]
[1728901163275,0.66073975,64960.0,64959.0,0.46283]
[1728901163540,0.66054708,64960.0,64959.0,0.46283]
[1728901165627,3.61762308,64960.0,64959.0,0.46283]
[1728901165859,3.58816908,64960.0,64959.0,0.46283]
[1728901166100,1.56163808,64960.0,64959.0,0.46283]
[1728901169870,1.60770477,64960.0,64959.0,0.46283]
[1728901170120,1.56163808,64960.0,64959.0,0.46283]
[1728901177148,1.56163808,64960.0,64959.0,0.4289378]
[1728901177149,1.612373,64960.0,64959.0,0.4289378]
[1728901177603,1.612373,64960.0,64959.0,0.001]
[1728901177831,0.25872381,64950.0,64937.0,0.23205625]
[1728901178069,1.44363386,64950.0,64937.0,0.23205625]
[1728901178292,3.27887786,64950.0,64937.0,0.23205625]
[1728901178538,3.33386986,64950.0,64937.0,0.23205625]
[1728901178758,2.15782986,64950.0,64937.0,0.23205625]
[1728901178951,2.09581986,64950.0,64937.0,0.23205625]
[1728901179922,0.80818686,64950.0,64937.0,0.23205625]
[1728901180403,0.75667986,64950.0,64937.0,0.23205625]
[1728901180628,0.74867986,64950.0,64937.0,0.23205625]
[1728901181068,0.75967986,64950.0,64937.0,0.23205625]
[1728901181513,0.74967986,64950.0,64937.0,0.23205625]
[1728901181751,0.76167986,64950.0,64937.0,0.23205625]
[1728901182715,0.176964,64950.0,64949.0,0.077446]
[1728901182951,0.023,64950.0,64949.0,0.077446]
[1728901183930,0.012,64950.0,64949.0,0.425012]
[1728901184157,0.021,64950.0,64949.0,0.425012]
[1728901184393,0.012,64950.0,64949.0,0.425012]
[1728901184618,0.153958,64953.0,64949.0,0.425012]
[1728901184850,0.002,64950.0,64949.0,0.425012]
[1728901185050,0.015,64950.0,64949.0,0.425012]
[1728901185212,0.015,64950.0,64949.0,0.42525219]
[1728901185450,0.153953,64955.0,64951.0,0.15396]
[1728901185623,0.153953,64955.0,64951.0,0.15420019]
[1728901185797,0.23205625,64956.0,64951.0,0.00024019]
[1728901185798,0.007,64953.0,64951.0,0.00024019]
[1728901186011,0.007,64953.0,64952.0,0.153959]
[1728901186223,0.23205625,64956.0,64951.0,0.00024019]
[1728901186431,0.153953,64955.0,64951.0,0.15420119]
[1728901186642,0.153956,64954.0,64952.0,0.46187]
[1728901186854,0.006,64953.0,64952.0,0.46187]
[1728901187070,0.153956,64954.0,64952.0,0.46187]
[1728901189064,0.001,64954.0,64952.0,0.46187]
[1728901189319,0.153957,64953.0,64952.0,0.46187]
[1728901193534,0.153957,64953.0,64952.0,0.463516]
[1728901200710,0.00063033,64960.0,64952.0,0.463516]
[1728901200937,0.1,64959.0,64953.0,0.0805]
[1728901201160,0.16185434,64960.0,64954.0,0.46187]
[1728901201161,0.153953,64955.0,64954.0,0.46187]
[1728901203705,0.155953,64955.0,64954.0,0.46187]
[1728901204156,0.002,64955.0,64954.0,0.46187]
[1728901204630,0.002,64955.0,64954.0,0.72547]
[1728901205077,0.002,64955.0,64954.0,0.879425]
[1728901206418,0.002,64955.0,64954.0,0.87966519]
[1728901206897,0.1,64958.0,64955.0,0.153952]
[1728901206898,0.253945,64958.0,64955.0,0.153952]
[1728901207156,0.153947,64957.0,64956.0,0.46185]
[1728901207346,0.308709,64959.0,64956.0,0.46185]
[1728901208268,0.153947,64957.0,64956.0,0.46185]
[1728901210333,0.155947,64957.0,64956.0,0.46185]
[1728901226923,0.002,64957.0,64956.0,0.57877826]
[1728901227202,0.002,64957.0,64956.0,1.27644034]
[1728901227438,0.002,64957.0,64956.0,1.27844034]
[1728901227920,0.000823,64959.0,64956.0,1.27844034]
[1728901227921,0.000823,64959.0,64958.0,0.41998519]
[1728901228151,0.23205625,64971.0,64962.0,0.42197619]
[1728901228377,0.23205625,64971.0,64962.0,1.22313209]
[1728901228844,0.23205625,64971.0,64962.0,1.33745477]
[1728901229307,0.23205625,64971.0,64962.0,0.88678619]
[1728901229561,0.02428752,64963.0,64962.0,1.05490808]
[1728901230095,0.02528752,64963.0,64962.0,1.12349646]
[1728901230370,0.02528752,64963.0,64962.0,1.05490808]
[1728901230602,0.02528752,64963.0,64962.0,1.11159858]
[1728901231067,0.02528752,64963.0,64962.0,1.0430102]
[1728901231312,0.02528752,64963.0,64962.0,1.08870052]
[1728901231546,0.02528752,64963.0,64962.0,1.10379847]
[1728901232520,0.02528752,64963.0,64962.0,0.88178619]
[1728901232768,0.02528752,64963.0,64962.0,0.86723419]
[1728901233240,0.02528752,64963.0,64962.0,0.8556134]
[1728901234041,0.02528752,64963.0,64962.0,1.01883741]
[1728901234514,0.02528752,64963.0,64962.0,1.02383741]
[1728901235493,0.02528752,64963.0,64962.0,1.02183741]
[1728901235728,0.02528752,64963.0,64962.0,1.1899593]
[1728901235997,0.02528752,64963.0,64962.0,0.8556134]
[1728901237407,0.02528752,64963.0,64962.0,1.02873529]
[1728901238134,0.02528752,64963.0,64962.0,0.8556134]
[1728901240614,0.02528752,64963.0,64962.0,1.1899593]
[1728901240859,0.02611052,64963.0,64962.0,1.1919593]
[1728901241881,0.02611052,64963.0,64962.0,1.1899593]
[1728901242150,0.02611052,64963.0,64962.0,1.1969593]
[1728901242641,0.02611052,64963.0,64962.0,1.1949593]
[1728901242876,0.02611052,64963.0,64962.0,1.24261102]
[1728901243115,0.02511052,64963.0,64962.0,1.24261102]
[1728901243356,0.02411052,64963.0,64962.0,1.1969593]
[1728901243621,0.02511052,64963.0,64962.0,1.02383741]
[1728901243878,0.02611052,64963.0,64962.0,1.02383741]
[1728901245377,0.02611052,64963.0,64962.0,1.02183741]
[1728901249240,0.02611052,64963.0,64962.0,1.02383741]
[1728901249458,0.02611052,64963.0,64962.0,1.02183741]
[1728901250049,0.02611052,64963.0,64962.0,1.02383741]
[1728901252115,0.02511052,64963.0,64962.0,1.02383741]
[1728901252344,0.02411052,64963.0,64962.0,1.02383741]
[1728901252568,0.02511052,64963.0,64962.0,1.04983741]
[1728901253080,0.02411052,64963.0,64962.0,1.03948341]
[1728901253327,0.02511052,64963.0,64962.0,1.05248341]
[1728901254236,0.02511052,64963.0,64962.0,1.05048341]
[1728901254478,0.02511052,64963.0,64962.0,1.04548341]
[1728901256467,0.02511052,64963.0,64962.0,0.8842594]
[1728901258087,0.02511052,64963.0,64962.0,0.88144581]
[1728901260513,0.02511052,64963.0,64962.0,0.726892]
[1728901260734,0.02511052,64963.0,64962.0,0.644392]
[1728901260963,0.02511052,64963.0,64962.0,0.490456]
[1728901261417,0.02511052,64963.0,64962.0,0.477456]
[1728901261641,0.02411052,64963.0,64962.0,0.631392]
[1728901261875,0.02511052,64963.0,64962.0,0.640392]
[1728901262790,0.02511052,64963.0,64962.0,0.626392]
[1728901263031,0.02611052,64963.0,64962.0,0.823992]
[1728901264430,0.02611052,64963.0,64962.0,0.906192]
[1728901265338,0.02611052,64963.0,64962.0,0.719592]
[1728901265566,0.02611052,64963.0,64962.0,0.637392]
[1728901268555,0.02611052,64963.0,64962.0,0.637392]
[1728901277676,0.000823,64977.0,64962.0,0.637392]
[1728901277677,0.000823,64977.0,64976.0,0.176902]
[1728901277917,0.000823,64977.0,64976.0,0.72985426]
[1728901278158,0.000823,64977.0,64976.0,1.08648244]
[1728901279111,0.000823,64977.0,64976.0,1.08448244]
[1728901279368,0.02925349,64988.0,64987.0,0.238076]
[1728901279643,0.005823,65009.0,64999.0,0.1842]
[1728901279644,1.00436549,65000.0,64999.0,0.1842]
[1728901279953,0.54064863,65000.0,64999.0,0.92529342]
[1728901280216,0.4793441,65000.0,64999.0,0.92529031]
[1728901280450,0.4793441,65000.0,64999.0,0.83404443]
[1728901280696,0.4793441,65000.0,64999.0,0.822598]
[1728901280949,0.4793441,65000.0,64999.0,1.24345977]
[1728901281463,0.4793441,65000.0,64999.0,1.02796957]
[1728901281718,0.4793441,65000.0,64999.0,0.91652314]
[1728901282260,0.4793441,65000.0,64999.0,0.93159851]
[1728901282519,0.4793441,65000.0,64999.0,0.94559851]
[1728901282790,0.4793441,65000.0,64999.0,0.629398]
[1728901283038,0.4793441,65000.0,64999.0,0.643398]
[1728901283288,0.4793441,65000.0,64999.0,0.629398]
[1728901283522,0.4793441,65000.0,64999.0,0.46155]
[1728901283790,0.4793441,65000.0,64999.0,0.47555]
[1728901284032,0.4793441,65000.0,64999.0,0.640398]
[1728901284492,0.4793441,65000.0,64999.0,0.47555]
[1728901284715,0.6331901,65000.0,64999.0,0.48655]
[1728901285184,0.4793441,65000.0,64999.0,0.46155]
[1728901285415,0.4793441,65000.0,64999.0,0.615398]
[1728901285638,0.4793441,65000.0,64999.0,0.628398]
[1728901285863,0.4793441,65000.0,64999.0,0.620398]
[1728901286800,0.4793441,65000.0,64999.0,0.78162201]
[1728901287063,0.4793441,65000.0,64999.0,0.80962201]
[1728901287320,0.4801671,65000.0,64999.0,0.80462201]
[1728901287543,0.4811671,65000.0,64999.0,0.80462201]
[1728901288040,0.43663613,65000.0,64999.0,1.58016135]
[1728901288282,0.43663613,65000.0,64999.0,1.3481051]
[1728901288499,0.43663613,65000.0,64999.0,1.35600906]
[1728901288725,0.43663613,65000.0,64999.0,1.17208392]
[1728901288970,0.43663613,65000.0,64999.0,1.16817996]
[1728901289206,0.43663613,65000.0,64999.0,1.17817996]
[1728901289441,0.43663613,65000.0,64999.0,1.18017996]
[1728901289679,0.43663613,65000.0,64999.0,1.17717996]
[1728901289923,0.43663613,65000.0,64999.0,1.19117996]
[1728901290380,0.43663613,65000.0,64999.0,1.18017996]
[1728901290848,0.43663613,65000.0,64999.0,1.19417996]
[1728901291585,0.43663613,65000.0,64999.0,1.09417996]
[1728901291836,0.43663613,65000.0,64999.0,0.80437996]
[1728901292534,0.43663613,65000.0,64999.0,0.79037996]
[1728901292778,0.43663613,65000.0,64999.0,0.62915595]
[1728901293024,0.43663613,65000.0,64999.0,0.64315595]
[1728901293257,0.43663613,65000.0,64999.0,0.62915595]
[1728901293493,0.43663613,65000.0,64999.0,0.64315595]
[1728901293733,0.43663613,65000.0,64999.0,0.62915595]
[1728901293958,0.43663613,65000.0,64999.0,0.61515595]
[1728901294184,0.43663613,65000.0,64999.0,0.64315595]
[1728901294416,0.43663613,65000.0,64999.0,0.62915595]
[1728901294642,0.43663613,65000.0,64999.0,0.61515595]
[1728901295174,0.43663613,65000.0,64999.0,0.47330795]
[1728901295893,0.43663613,65000.0,64999.0,0.48730795]
[1728901296131,0.43663613,65000.0,64999.0,0.47330795]
[1728901296382,0.43663613,65000.0,64999.0,0.48630795]
[1728901296630,0.43663613,65000.0,64999.0,0.47330795]
[1728901296856,0.43663613,65000.0,64999.0,0.46130795]
[1728901297090,0.59048213,65000.0,64999.0,0.46830795]
[1728901297327,0.59048213,65000.0,64999.0,0.47930795]
[1728901297808,0.59048213,65000.0,64999.0,0.46830795]
[1728901298036,0.59048213,65000.0,64999.0,0.47330795]
[1728901298528,0.59048213,65000.0,64999.0,0.46830795]
[1728901298762,0.59048213,65000.0,64999.0,0.46295395]
[1728901298988,0.59348213,65000.0,64999.0,0.46295395]
[1728901299260,0.59448213,65000.0,64999.0,0.46295395]
[1728901299490,0.85520727,65000.0,64999.0,0.46295395]
[1728901300172,1.03713241,65000.0,64999.0,0.46295395]
[1728901300409,1.03313241,65000.0,64999.0,0.46295395]
[1728901300633,1.19435642,65000.0,64999.0,0.46395395]
[1728901300853,1.01943128,65000.0,64999.0,0.46495395]
[1728901301310,1.29835642,65000.0,64999.0,0.46395395]
[1728901301539,1.29835642,65000.0,64999.0,0.46495395]
[1728901301540,1.30635642,65000.0,64999.0,0.46495395]
[1728901301770,1.48905642,65000.0,64999.0,0.46495395]
[1728901301999,1.48905642,65000.0,64999.0,0.13279554]
[1728901302238,0.153884,64984.0,64983.0,0.23205625]
[1728901302464,0.49703315,64984.0,64983.0,0.23205625]
[1728901302744,0.1539,64977.0,64976.0,0.23205625]
[1728901302978,0.33582514,64977.0,64976.0,0.23205625]
[1728901303210,0.15391,64973.0,64968.0,0.153921]
[1728901303445,0.15391,64973.0,64964.0,0.23205625]
[1728901303446,0.153906,64975.0,64972.0,0.23205625]
[1728901303684,0.18192514,64977.0,64973.0,0.46173]
[1728901303923,0.33582614,64977.0,64973.0,0.615639]
[1728901304162,0.153901,64977.0,64973.0,0.615639]
[1728901304408,0.154901,64977.0,64973.0,0.615639]
[1728901304634,0.001,64977.0,64973.0,0.46173]
[1728901304863,0.307793,64979.0,64973.0,0.46173]
[1728901305080,0.153905,64975.0,64973.0,0.46173]
[1728901305537,0.48970714,64981.0,64973.0,0.46373]
[1728901305794,0.23205625,64985.0,64973.0,0.46373]
[1728901305795,0.1,64984.0,64973.0,0.46373]
[1728901306035,0.153872,64989.0,64983.0,0.153884]
[1728901306270,0.23205625,64985.0,64979.0,0.307787]
[1728901306537,0.18192514,64997.0,64985.0,0.307762]
[1728901306765,0.18192514,64997.0,64981.0,0.005]
[1728901306766,0.23205625,64992.0,64991.0,0.153867]
[1728901306990,0.153856,64996.0,64991.0,0.153865]
[1728901307215,0.153856,64996.0,64989.0,0.307743]
[1728901307216,0.153857,64996.0,64989.0,0.15387]
[1728901307457,0.153864,64993.0,64990.0,0.46161]
[1728901307687,0.48961614,65001.0,64990.0,0.46161]
[1728901307914,0.31245096,65003.0,64994.0,0.153858]
[1728901308143,0.31245096,65003.0,64999.0,0.153848]
[1728901308144,0.00477096,65003.0,64999.0,0.153848]
[1728901308370,0.00477096,65003.0,64999.0,0.615398]
[1728901310335,0.44363613,65000.0,64999.0,0.619398]
[1728901310799,0.43663613,65000.0,64999.0,0.619398]
[1728901311025,0.43663613,65000.0,64999.0,0.621398]
[1728901313409,0.43663613,65000.0,64999.0,0.80562201]
[1728901313878,0.43663613,65000.0,64999.0,0.81062201]
[1728901315008,0.43663613,65000.0,64999.0,0.80562201]
[1728901315264,0.00477096,65003.0,65001.0,0.414143]
[1728901315483,0.005823,65009.0,65008.0,0.181827]
[1728901315703,0.005823,65009.0,65008.0,0.88423101]
[1728901315936,0.005823,65009.0,65008.0,1.06683101]
[1728901316169,0.005823,65009.0,65008.0,1.06483101]
[1728901317347,0.005823,65009.0,65008.0,1.07883101]
[1728901317569,0.006823,65009.0,65008.0,1.09083101]
[1728901319711,0.006823,65009.0,65008.0,1.08583101]
[1728901320401,0.006823,65009.0,65008.0,1.09083101]
[1728901320842,0.006823,65009.0,65008.0,0.924607]
[1728901321069,0.006823,65009.0,65008.0,0.48748]
[1728901321302,0.160647,65009.0,65008.0,0.48748]
[1728901322224,0.006823,65009.0,65008.0,0.47548]
[1728901322458,0.005823,65009.0,65008.0,0.615307]
[1728901322681,0.006823,65009.0,65008.0,0.47148]
[1728901323117,0.005823,65009.0,65008.0,0.46148]
[1728901323377,0.007823,65009.0,65008.0,0.46148]
[1728901323838,0.159647,65009.0,65008.0,0.46148]
[1728901324062,0.159647,65009.0,65008.0,0.46248]
[1728901324282,0.160647,65009.0,65008.0,0.46248]
[1728901326383,0.006823,65009.0,65008.0,0.46248]
[1728901328506,0.006823,65009.0,65008.0,1.06293101]
[1728901329536,0.15493384,65020.0,65008.0,1.06293101]
[1728901329537,0.7974,65064.0,65008.0,1.06293101]
[1728901329748,0.18192514,65036.0,65032.0,0.23205625]
[1728901329988,0.18192514,65036.0,65032.0,0.23705625]
[1728901330223,0.18192514,65042.0,65035.0,0.005]
[1728901330482,0.18192514,65042.0,65038.0,0.005]
[1728901330725,0.18192514,65042.0,65039.0,0.46126]
[1728901331213,0.18192514,65040.0,65039.0,0.46126]
[1728901331475,0.223877,65076.0,65039.0,0.46126]
[1728901331476,0.307446,65052.0,65039.0,0.46126]
[1728901331722,0.1,65040.0,65039.0,0.46126]
[1728901332204,0.59690015,65040.0,65039.0,0.46126]
[1728901332939,0.41497501,65040.0,65039.0,0.46226]
[1728901333183,0.59690015,65040.0,65039.0,0.46226]
[1728901333464,0.006,65040.0,65039.0,0.46226]
[1728901333692,0.11,65040.0,65039.0,0.54696]
[1728901333953,0.116,65040.0,65039.0,0.54596]
[1728901334183,0.11,65040.0,65039.0,0.54496]
[1728901334434,0.116,65040.0,65039.0,0.54486]
[1728901334671,0.016,65040.0,65039.0,0.54486]
[1728901335185,0.006,65040.0,65039.0,0.54386]
[1728901335453,0.006,65040.0,65039.0,0.54486]
[1728901335454,0.016,65040.0,65039.0,0.54486]
[1728901335720,0.016,65040.0,65039.0,0.54986]
[1728901335995,0.016,65040.0,65039.0,0.57286]
[1728901336234,0.016,65040.0,65039.0,0.57486]
[1728901336707,0.1,65054.0,65046.0,0.002]
[1728901336959,0.1,65050.0,65047.0,0.4612]
[1728901337461,0.1,65050.0,65047.0,0.4632]
[1728901338194,0.16122401,65053.0,65047.0,0.4632]
[1728901338195,0.1,65052.0,65047.0,0.4632]
[1728901338430,0.307411,65060.0,65047.0,0.4632]
[1728901338431,0.1,65060.0,65050.0,0.002]
[1728901338671,0.307429,65056.0,65051.0,0.46118]
[1728901338917,0.253723,65052.0,65051.0,0.46118]
[1728901340161,0.41494701,65052.0,65051.0,0.46118]
[1728901340413,0.307437,65054.0,65051.0,0.46118]
[1728901340414,0.1,65054.0,65051.0,0.46118]
[1728901340660,0.258723,65052.0,65051.0,0.46218]
[1728901341410,0.258723,65052.0,65051.0,0.46118]
[1728901341411,0.253723,65052.0,65051.0,0.46118]
[1728901341675,0.307432,65055.0,65051.0,0.46118]
[1728901341676,0.1,65053.0,65051.0,0.46318]
[1728901341905,0.253721,65053.0,65051.0,0.46318]
[1728901342171,0.253721,65053.0,65051.0,0.46218]
[1728901342407,0.009,65052.0,65051.0,0.46318]
[1728901342879,0.253721,65053.0,65051.0,0.46118]
[1728901343112,0.006,65052.0,65051.0,0.46218]
[1728901343390,0.006,65052.0,65051.0,0.46318]
[1728901344401,0.006,65052.0,65051.0,0.46818]
[1728901344648,0.006,65052.0,65051.0,0.46718]
[1728901345143,0.015,65052.0,65051.0,0.46818]
[1728901346416,0.268723,65052.0,65051.0,0.46318]
[1728901346663,0.115,65052.0,65051.0,0.46818]
[1728901347448,0.268723,65052.0,65051.0,0.46818]
[1728901347934,0.268723,65052.0,65051.0,0.46318]
[1728901348382,0.42994701,65052.0,65051.0,0.46318]
[1728901349164,0.41494701,65052.0,65051.0,0.46118]
[1728901349396,0.43094701,65052.0,65051.0,0.46318]
[1728901349625,0.42494701,65052.0,65051.0,0.46218]
[1728901349873,0.41494701,65052.0,65051.0,0.46118]
[1728901350119,0.41494701,65052.0,65051.0,0.46218]
[1728901350120,0.42094701,65052.0,65051.0,0.46218]
[1728901350361,0.43094701,65052.0,65051.0,0.46318]
[1728901350832,0.42494701,65052.0,65051.0,0.46218]
[1728901351090,0.42494701,65052.0,65051.0,0.46318]
[1728901351091,0.43094701,65052.0,65051.0,0.46318]
[1728901351639,0.42094701,65052.0,65051.0,0.46218]
[1728901351885,0.43294701,65052.0,65051.0,0.46218]
[1728901355358,2.48375001,65052.0,65051.0,0.46218]
[1728901355561,2.32265101,65052.0,65051.0,0.46218]
[1728901355801,1.28435001,65052.0,65051.0,0.46218]
[1728901356028,1.27835001,65052.0,65051.0,0.46118]
[1728901356312,1.27835001,65052.0,65051.0,0.46318]
[1728901356313,1.30535001,65052.0,65051.0,0.46318]
[1728901356554,1.29235001,65052.0,65051.0,0.46218]
[1728901356796,1.34830301,65052.0,65051.0,0.46218]
[1728901357071,1.34830301,65052.0,65051.0,0.46318]
[1728901357072,1.36130301,65052.0,65051.0,0.46318]
[1728901357309,0.04587922,65068.0,65051.0,0.46318]
[1728901357310,0.04587922,65074.0,65062.0,0.0784]
[1728901357615,0.04587922,65074.0,65051.0,0.46718]
[1728901357616,0.000822,65090.0,65083.0,0.023]
[1728901357869,0.000822,65090.0,65075.0,0.0784]
[1728901357870,0.000822,65090.0,65084.0,0.46094]
[1728901358094,0.153636,65089.0,65084.0,0.46094]
[1728901358326,0.153645,65085.0,65084.0,0.46094]
[1728901358561,0.31486901,65085.0,65084.0,0.46094]
[1728901358790,0.307277,65088.0,65084.0,0.46094]
[1728901359049,0.153645,65085.0,65084.0,0.46094]
[1728901359283,0.41486901,65085.0,65084.0,0.46094]
[1728901359762,0.42486901,65085.0,65084.0,0.46094]
[1728901360008,0.41486901,65085.0,65084.0,0.46094]
[1728901360491,0.42886901,65085.0,65084.0,0.46094]
[1728901360717,0.41486901,65085.0,65084.0,0.46094]